bitfinex-derivatives/quotes_BTCF0:USTF0_20250828
["timestamp","ask_amount","ask_price","bid_price","bid_amount"]
[1756423937322,0.46451367,112490.0,112480.0,0.00731]
[1756423938423,0.02444,112480.0,112470.0,0.4676385]
[1756423938624,0.03933192,112480.0,112470.0,0.4721385]
[1756423939626,0.03933192,112480.0,112470.0,0.0962079]
[1756423939825,0.04033192,112480.0,112470.0,0.4721385]
[1756423940930,0.04033192,112480.0,112470.0,0.0962079]
[1756423941129,0.04033192,112480.0,112470.0,0.4721385]
[1756423944331,0.04033192,112480.0,112470.0,0.0962079]
[1756423945932,0.04033192,112480.0,112470.0,0.4721385]
[1756423947033,0.04033192,112480.0,112470.0,0.0962079]
[1756423947331,0.04033192,112480.0,112470.0,0.4721385]
[1756423947533,0.01679,112480.0,112470.0,0.4721385]
[1756423948634,0.04123,112480.0,112470.0,0.4721385]
[1756423949034,0.01679,112480.0,112470.0,0.4721385]
[1756423949833,0.04123,112480.0,112470.0,0.0962079]
[1756423950034,0.04123,112480.0,112470.0,0.4721385]
[1756423951745,0.01679,112480.0,112470.0,0.4721385]
[1756423952533,0.02326,112470.0,112460.0,0.18321488]
[1756423952737,0.02326,112470.0,112460.0,0.0293205]
[1756423952738,0.4149706,112470.0,112460.0,0.0293205]
[1756423952940,0.4149706,112470.0,112460.0,0.0196805]
[1756423953645,0.4149706,112470.0,112460.0,0.0256105]
[1756423954340,0.03904,112470.0,112460.0,0.0256105]
[1756423954541,0.4149706,112470.0,112460.0,0.0256105]
[1756423955148,0.4159706,112470.0,112460.0,0.0256105]
[1756423957543,0.4159706,112470.0,112460.0,0.0293205]
[1756423957745,0.04004,112470.0,112460.0,0.0293205]
[1756423957942,0.4159706,112470.0,112460.0,0.0293205]
[1756423958146,0.04004,112470.0,112460.0,0.0293205]
[1756423960041,0.04004,112470.0,112460.0,0.0256105]
[1756423960246,0.04004,112470.0,112460.0,0.0293205]
[1756423960553,0.4159706,112470.0,112460.0,0.0293205]
[1756423960753,0.4159706,112470.0,112460.0,0.0256105]
[1756423961655,0.4159706,112470.0,112460.0,0.0196805]
[1756423962056,0.4159706,112470.0,112460.0,0.0293205]
[1756423967562,0.04004,112470.0,112460.0,0.7441627]
[1756423967762,0.001,112470.0,112460.0,0.7441627]
[1756423967955,0.01678,112470.0,112460.0,0.7441627]
[1756423968862,0.001,112470.0,112460.0,1.8741227]
[1756423969265,0.01578,112480.0,112470.0,0.0948337]
[1756423969459,0.03904,112480.0,112470.0,0.4707643]
[1756423969865,0.03904,112480.0,112470.0,0.4744743]
[1756423971362,0.04004,112480.0,112470.0,0.4744743]
[1756423971660,0.001,112480.0,112470.0,0.7244743]
[1756423971866,0.001,112480.0,112470.0,1.0444743]
[1756423972258,0.001,112480.0,112470.0,1.20429868]
[1756423973070,0.001,112480.0,112470.0,0.95429868]
[1756423974570,0.001,112480.0,112470.0,0.0985437]
[1756423974771,0.001,112480.0,112470.0,0.7944743]
[1756423975671,0.001,112480.0,112470.0,0.4744743]
[1756423975972,0.01678,112480.0,112470.0,0.7944743]
[1756423976160,0.01678,112480.0,112470.0,0.4744743]
[1756423976561,0.04004,112480.0,112470.0,0.4744743]
[1756423985671,0.01678,112480.0,112470.0,0.4744743]
[1756423985975,0.01678,112480.0,112470.0,0.63429868]
[1756423987577,0.01678,112480.0,112470.0,0.4744743]
[1756423989077,0.04072,112480.0,112470.0,0.63429868]
[1756423989377,0.01678,112480.0,112470.0,0.63429868]
[1756423990978,0.001,112480.0,112470.0,0.63429868]
[1756423991277,0.001,112480.0,112470.0,0.95429868]
[1756423994578,0.02398,112500.0,112490.0,0.0959279]
[1756423994579,0.01534,112500.0,112490.0,0.0959279]
[1756423994878,0.03928,112500.0,112490.0,1.2816585]
[1756423996179,0.04028,112500.0,112490.0,1.2816585]
[1756423996573,0.04028,112500.0,112490.0,1.29054884]
[1756423996778,0.03928,112500.0,112490.0,1.29054884]
[1756423997583,0.03928,112500.0,112490.0,0.48074884]
[1756423997983,0.03928,112500.0,112490.0,0.01593034]
[1756423998584,0.03928,112500.0,112490.0,0.10481824]
[1756423998978,0.6652106,112500.0,112480.0,0.18267387]
[1756423999181,0.4151706,112490.0,112480.0,0.18700387]
[1756423999574,0.4151706,112490.0,112480.0,0.18429387]
[1756423999882,0.6651706,112490.0,112480.0,0.17996387]
[1756424000185,0.6651706,112490.0,112480.0,0.18096387]
[1756424000386,0.6651706,112490.0,112480.0,0.02113949]
[1756424001881,0.6651706,112490.0,112460.0,0.99054488]
[1756424001882,0.6412306,112490.0,112460.0,0.99054488]
[1756424002082,0.4151706,112470.0,112460.0,0.99647488]
[1756424002287,0.03924,112470.0,112460.0,1.00018488]
[1756424002486,0.03824,112470.0,112460.0,1.00018488]
[1756424003889,0.03824,112470.0,112460.0,1.00318488]
[1756424004488,0.03824,112470.0,112460.0,0.8433605]
[1756424004987,0.03824,112470.0,112460.0,0.8423605]
[1756424005290,0.03824,112470.0,112460.0,0.9312721]
[1756424005485,0.03824,112470.0,112460.0,0.9292721]
[1756424005682,0.6641706,112470.0,112460.0,0.0293205]
[1756424005883,0.6641706,112470.0,112460.0,0.0196805]
[1756424007091,0.6651706,112470.0,112460.0,0.0196805]
[1756424009589,0.02394,112460.0,112440.0,0.92295167]
[1756424009790,0.03924,112450.0,112440.0,0.84155947]
[1756424009993,0.03924,112450.0,112440.0,0.68173509]
[1756424010893,0.03924,112450.0,112440.0,0.77066249]
[1756424011198,0.03924,112450.0,112440.0,0.77166249]
[1756424011593,0.03924,112450.0,112440.0,0.77266249]
[1756424012294,0.03924,112450.0,112440.0,0.77166249]
[1756424012592,0.03924,112450.0,112440.0,0.77266249]
[1756424012783,0.03924,112450.0,112440.0,0.77266259]
[1756424019803,0.03924,112450.0,112440.0,0.68373509]
[1756424019999,0.6651706,112450.0,112440.0,0.674718]
[1756424021200,0.6651706,112450.0,112440.0,0.106038]
[1756424021502,0.6651706,112450.0,112440.0,0.105038]
[1756424023005,0.6651706,112450.0,112440.0,0.08042203]
[1756424023406,0.6651706,112450.0,112440.0,0.08513203]
[1756424024916,0.28924,112450.0,112440.0,0.08513203]
[1756424026617,0.6651706,112450.0,112440.0,0.08513203]
[1756424027610,0.6651706,112450.0,112440.0,0.08042203]
[1756424027810,0.6651706,112450.0,112440.0,0.08513203]
[1756424031223,0.6651706,112450.0,112440.0,0.08042203]
[1756424033125,0.4151706,112450.0,112440.0,0.08042203]
[1756424035930,0.03924,112450.0,112440.0,0.07289203]
[1756424036128,0.0245,112440.0,112420.0,0.00471]
[1756424036328,0.4167206,112430.0,112420.0,0.01224]
[1756424036522,0.0245,112420.0,112410.0,1.62941398]
[1756424036725,0.01004102,112420.0,112410.0,1.093659]
[1756424037528,0.03454427,112430.0,112420.0,0.03541]
[1756424037826,0.03454427,112430.0,112420.0,0.03741]
[1756424038020,0.03454427,112430.0,112420.0,0.04041]
[1756424038220,0.03454427,112430.0,112420.0,0.1293533]
[1756424038724,0.05904427,112430.0,112420.0,0.20844776]
[1756424040230,0.05904427,112430.0,112420.0,0.20644776]
[1756424040928,0.05904427,112430.0,112420.0,0.20844776]
[1756424041627,0.05904427,112430.0,112420.0,0.11061823]
[1756424042330,0.05904427,112430.0,112420.0,0.11971356]
[1756424042530,0.05904427,112430.0,112420.0,0.11061823]
[1756424042732,0.43497487,112430.0,112420.0,0.09144823]
[1756424044830,0.05904427,112430.0,112420.0,0.11061823]
[1756424045030,0.43497487,112430.0,112420.0,0.02124]
[1756424045232,0.43497487,112430.0,112420.0,0.005]
[1756424045434,0.43497487,112430.0,112420.0,0.02003]
[1756424047735,0.43497487,112430.0,112420.0,0.0392]
[1756424053638,0.43497487,112430.0,112420.0,0.02003]
[1756424061444,0.48219701,112430.0,112420.0,0.44318274]
[1756424062343,0.05904427,112430.0,112420.0,0.80129604]
[1756424062547,0.05904427,112430.0,112420.0,1.61125604]
[1756424062749,0.05904427,112430.0,112420.0,0.55129604]
[1756424063047,0.48219701,112430.0,112420.0,0.55129604]
[1756424064945,0.05904427,112430.0,112420.0,0.55129604]
[1756424065151,0.05904427,112430.0,112420.0,0.80129604]
[1756424065351,0.01825427,112430.0,112420.0,0.80129604]
[1756424065540,0.01825427,112430.0,112420.0,1.11129604]
[1756424066551,0.00379702,112430.0,112420.0,1.27112042]
[1756424067344,0.00379702,112430.0,112420.0,1.22392669]
[1756424067851,0.05672298,112460.0,112450.0,0.1231195]
[1756424068048,0.05672298,112460.0,112450.0,0.49907851]
[1756424068956,0.05772298,112460.0,112450.0,0.49907851]
[1756424071653,0.03390298,112460.0,112450.0,0.49907851]
[1756424071861,0.01880298,112460.0,112450.0,1.06907851]
[1756424072358,0.001,112460.0,112450.0,1.08926276]
[1756424073056,0.01627,112470.0,112460.0,0.0889042]
[1756424073257,0.05885434,112480.0,112470.0,0.1055537]
[1756424073457,0.05885434,112480.0,112470.0,0.48151271]
[1756424073658,0.05885434,112480.0,112470.0,0.50068271]
[1756424074958,0.05885434,112480.0,112470.0,0.03582]
[1756424075459,0.05885434,112480.0,112470.0,0.1247237]
[1756424076058,0.05985434,112480.0,112470.0,0.19492926]
[1756424076358,0.05985434,112480.0,112470.0,0.20368611]
[1756424076560,0.05985434,112480.0,112470.0,0.13348055]
[1756424081164,0.05985434,112480.0,112470.0,0.20500176]
[1756424087164,0.05985434,112480.0,112470.0,0.58096077]
[1756424089166,0.03525434,112480.0,112470.0,0.58096077]
[1756424089565,0.03525434,112480.0,112470.0,0.20500176]
[1756424089566,0.05985434,112480.0,112470.0,0.20500176]
[1756424089764,0.05985434,112480.0,112470.0,0.58096077]
[1756424090165,0.03525434,112480.0,112470.0,0.58096077]
[1756424090768,0.05985434,112480.0,112470.0,0.58096077]
[1756424091267,0.03525434,112480.0,112470.0,0.58096077]
[1756424091868,0.001,112480.0,112470.0,0.58096077]
[1756424092067,0.001,112480.0,112470.0,0.60064676]
[1756424093471,0.0246,112490.0,112470.0,0.68955046]
[1756424093658,0.04087,112490.0,112480.0,0.50067501]
[1756424093859,0.01627,112490.0,112480.0,0.50067501]
[1756424095172,0.04087,112490.0,112480.0,0.50067501]
[1756424096571,0.01627,112490.0,112480.0,0.50067501]
[1756424096872,0.01727,112490.0,112480.0,0.50067501]
[1756424097173,0.04187,112490.0,112480.0,0.50067501]
[1756424097470,0.01727,112490.0,112480.0,0.50067501]
[1756424097871,0.04187,112490.0,112480.0,0.50067501]
[1756424099977,0.01727,112490.0,112480.0,0.50067501]
[1756424100372,0.04,112490.0,112480.0,0.50067501]
[1756424100774,0.001,112490.0,112480.0,1.31307501]
[1756424101071,0.001,112490.0,112480.0,1.56307501]
[1756424101275,0.001,112490.0,112480.0,1.88307501]
[1756424102478,0.001,112490.0,112480.0,1.56307501]
[1756424105476,0.001,112490.0,112480.0,1.63307501]
[1756424107882,0.02373,112490.0,112480.0,1.56307501]
[1756424108179,0.001,112490.0,112480.0,1.56307501]
[1756424116179,0.04062451,112500.0,112480.0,1.65197101]
[1756424116379,0.05689451,112500.0,112490.0,0.50058731]
[1756424118589,0.05689451,112500.0,112490.0,0.1246283]
[1756424118882,0.05689451,112500.0,112490.0,0.50058731]
[1756424119286,0.05789451,112500.0,112490.0,0.50058731]
[1756424119586,0.05789451,112500.0,112490.0,0.1246283]
[1756424119789,0.43385352,112500.0,112490.0,0.03574]
[1756424121880,0.43385352,112500.0,112480.0,0.01917]
[1756424121881,0.68385352,112500.0,112480.0,0.01917]
[1756424122087,0.039,112480.0,112470.0,0.13570405]
[1756424122286,0.41495901,112480.0,112470.0,0.13570405]
[1756424122580,0.66495901,112480.0,112470.0,0.09684806]
[1756424122782,1.87259021,112480.0,112450.0,0.03935425]
[1756424122981,1.87259021,112480.0,112450.0,0.44061679]
[1756424122982,0.039,112460.0,112450.0,0.44061679]
[1756424123182,0.01627,112460.0,112450.0,0.52080286]
[1756424123376,0.02273,112470.0,112450.0,0.52080286]
[1756424123577,0.039,112470.0,112460.0,0.41169901]
[1756424124182,0.039,112470.0,112460.0,0.50061101]
[1756424125286,0.039,112470.0,112460.0,0.41169901]
[1756424125584,0.039,112470.0,112460.0,0.03574]
[1756424126191,0.41495901,112470.0,112460.0,0.03574]
[1756424126490,0.41595901,112470.0,112460.0,0.03574]
[1756424126689,0.66595901,112470.0,112460.0,0.03574]
[1756424126889,0.66595901,112470.0,112460.0,0.01657]
[1756424127379,0.29,112470.0,112460.0,0.03574]
[1756424127580,0.29,112470.0,112460.0,0.1246521]
[1756424127783,0.04,112470.0,112460.0,0.50061111]
[1756424130487,0.001,112470.0,112460.0,1.31449111]
[1756424131795,0.05630219,112480.0,112470.0,0.1245941]
[1756424132095,0.05630219,112480.0,112470.0,0.50055311]
[1756424132791,0.03326219,112480.0,112470.0,0.50055311]
[1756424132992,0.01803219,112480.0,112470.0,0.75055311]
[1756424133591,0.01803219,112480.0,112470.0,0.82022516]
[1756424136696,0.01803219,112480.0,112470.0,1.14022516]
[1756424138899,0.01803219,112480.0,112470.0,1.14122516]
[1756424139502,0.01803219,112480.0,112470.0,1.14222516]
[1756424139990,0.04093451,112500.0,112490.0,0.0888883]
[1756424140195,0.05616451,112500.0,112490.0,1.28128731]
[1756424140392,0.03312451,112500.0,112490.0,1.28128731]
[1756424141304,0.03412451,112500.0,112490.0,1.28128731]
[1756424141896,0.01889451,112500.0,112490.0,1.28128731]
[1756424146910,0.01889451,112500.0,112490.0,0.9053283]
[1756424147104,0.05716451,112500.0,112490.0,0.46780731]
[1756424147302,0.05716451,112500.0,112490.0,0.9050083]
[1756424147497,0.05716451,112500.0,112490.0,0.81612]
[1756424147702,0.30716451,112500.0,112490.0,0.81554]
[1756424147903,0.30716451,112500.0,112490.0,0.9055686]
[1756424148300,0.68312352,112500.0,112480.0,0.46599181]
[1756424148507,0.03827,112490.0,112480.0,0.9060928]
[1756424148709,0.03827,112490.0,112480.0,1.28205181]
[1756424149909,0.01523,112490.0,112480.0,1.28205181]
[1756424151407,0.05616451,112500.0,112490.0,0.0918486]
[1756424151809,0.05616451,112500.0,112490.0,0.46780761]
[1756424152616,0.05616451,112500.0,112490.0,0.0918486]
[1756424152808,0.05616451,112500.0,112490.0,0.00296]
[1756424153310,0.05616451,112500.0,112490.0,0.0918488]
[1756424153311,0.05716451,112500.0,112490.0,0.0918488]
[1756424154712,0.05716451,112500.0,112490.0,0.46780781]
[1756424161609,0.01889451,112500.0,112490.0,0.46780781]
[1756424168815,0.03402451,112500.0,112490.0,0.46780781]
[1756424169723,0.01889451,112500.0,112490.0,0.46780781]
[1756424171826,0.01889451,112500.0,112490.0,0.62763219]
[1756424172717,0.01889451,112500.0,112490.0,0.46780781]
[1756424173726,0.01889451,112500.0,112490.0,0.78780781]
[1756424174026,0.01889451,112500.0,112490.0,0.46780781]
[1756424174337,0.05703451,112500.0,112490.0,1.44075219]
[1756424175022,0.05703451,112500.0,112490.0,1.28092781]
[1756424175430,0.01889451,112500.0,112490.0,1.28092781]
[1756424177133,0.04190451,112500.0,112490.0,1.28092781]
[1756424179333,0.01889451,112500.0,112490.0,1.28092781]
[1756424181640,0.01889451,112500.0,112490.0,1.44075219]
[1756424184329,0.01889451,112500.0,112490.0,1.76075219]
[1756424185235,0.01889451,112500.0,112490.0,1.44075219]
[1756424185733,0.01889451,112500.0,112490.0,0.62763219]
[1756424185935,0.05703451,112500.0,112490.0,1.44315219]
[1756424187037,0.03402451,112500.0,112490.0,1.44315219]
[1756424187232,0.03402451,112500.0,112490.0,1.28332781]
[1756424188037,0.01889451,112500.0,112490.0,1.28332781]
[1756424188234,0.01889451,112500.0,112490.0,1.44308088]
[1756424189736,0.01889451,112500.0,112490.0,1.28332781]
[1756424190536,0.01889451,112500.0,112490.0,1.44311545]
[1756424190935,0.01889451,112500.0,112490.0,1.76311545]
[1756424191136,0.03926,112520.0,112510.0,0.0891272]
[1756424191429,0.03926,112520.0,112510.0,1.28076621]
[1756424192037,0.01543,112520.0,112510.0,1.76055385]
[1756424192238,0.03926,112530.0,112520.0,0.0891197]
[1756424192437,0.03926,112530.0,112520.0,0.46507871]
[1756424192937,0.03926,112530.0,112520.0,0.47401554]
[1756424193437,0.04226,112530.0,112520.0,0.47401554]
[1756424194235,0.04226,112530.0,112520.0,0.09805703]
[1756424194437,0.04226,112530.0,112520.0,0.47401604]
[1756424195125,0.29226,112530.0,112520.0,0.00025]
[1756424195331,0.03926,112520.0,112510.0,0.00025]
[1756424195639,0.03926,112510.0,112500.0,0.84090573]
[1756424197129,0.01543,112510.0,112500.0,0.84090573]
[1756424199336,0.01743,112510.0,112500.0,0.84090573]
[1756424200238,0.04126,112510.0,112500.0,0.84090573]
[1756424202139,0.01743,112510.0,112500.0,0.84090573]
[1756424202543,0.002,112510.0,112500.0,0.84090573]
[1756424203137,0.01743,112510.0,112500.0,0.84090573]
[1756424203336,0.04126,112510.0,112500.0,0.84090573]
[1756424204539,0.04126,112510.0,112500.0,0.92090573]
[1756424206743,0.04126,112510.0,112500.0,1.08069337]
[1756424208348,0.04126,112510.0,112500.0,0.92090573]
[1756424208546,0.01743,112510.0,112500.0,0.92090573]
[1756424208749,0.04126,112510.0,112500.0,0.92090573]
[1756424210653,0.01743,112510.0,112500.0,0.92090573]
[1756424210956,0.002,112510.0,112500.0,0.92090573]
[1756424212156,0.01743,112510.0,112500.0,0.92090573]
[1756424212456,0.01743,112510.0,112500.0,1.16090573]
[1756424214953,0.04126,112510.0,112500.0,0.46494672]
[1756424215260,0.04126,112510.0,112500.0,0.84090573]
[1756424220061,0.01743,112510.0,112500.0,0.84090573]
[1756424220562,0.04201,112510.0,112500.0,0.84090573]
[1756424220759,0.04201,112510.0,112500.0,0.47414573]
[1756424220953,0.29201,112510.0,112500.0,0.00930622]
[1756424221159,0.66796901,112510.0,112500.0,0.00025]
[1756424221559,0.66796901,112510.0,112500.0,0.0093685]
[1756424221858,0.66796901,112510.0,112500.0,0.00025]
[1756424222263,0.29201,112510.0,112500.0,0.00025]
[1756424222764,0.04003,112500.0,112490.0,0.27771128]
[1756424223058,0.41598901,112500.0,112470.0,0.6054187]
[1756424223358,0.04003,112480.0,112470.0,0.6944241]
[1756424223564,0.04003,112480.0,112470.0,0.15883195]
[1756424224161,0.04003,112480.0,112470.0,0.53479096]
[1756424224656,0.04003,112480.0,112470.0,0.53579096]
[1756424225352,1.25541273,112510.0,112470.0,0.53579096]
[1756424225353,0.02458,112490.0,112480.0,0.088902]
[1756424225552,0.04003,112500.0,112490.0,0.0891397]
[1756424225758,0.04003,112500.0,112490.0,0.46509871]
[1756424226355,0.04003,112500.0,112490.0,0.0891397]
[1756424226554,0.04003,112500.0,112490.0,0.46509871]
[1756424227560,0.78791,112510.0,112500.0,0.0888862]
[1756424227767,0.78791,112510.0,112500.0,0.46509521]
[1756424228266,0.04003,112510.0,112500.0,0.46509521]
[1756424229668,0.04203,112510.0,112500.0,0.46509521]
[1756424230061,0.04203,112510.0,112500.0,0.0891362]
[1756424230466,0.04203,112510.0,112500.0,0.00025]
[1756424230966,0.04203,112510.0,112500.0,0.0891362]
[1756424231168,0.04203,112510.0,112500.0,0.00025]
[1756424231565,0.01745,112510.0,112490.0,0.46494721]
[1756424231771,0.04003,112500.0,112490.0,0.46509721]
[1756424232571,0.01745,112510.0,112500.0,0.089136]
[1756424232767,0.01745,112510.0,112500.0,0.46509501]
[1756424232970,0.001,112510.0,112500.0,0.46509501]
[1756424233171,0.01645,112510.0,112500.0,0.46509501]
[1756424233772,0.0577998,112520.0,112510.0,0.00025]
[1756424233969,0.0577998,112520.0,112510.0,0.37620901]
[1756424234173,0.0577998,112520.0,112510.0,0.00025]
[1756424234473,0.0577998,112520.0,112510.0,0.089128]
[1756424236179,0.0577998,112520.0,112510.0,0.46508701]
[1756424236480,0.0577998,112520.0,112510.0,0.47394676]
[1756424236777,0.0607998,112520.0,112510.0,0.47394676]
[1756424236973,0.0607998,112520.0,112510.0,0.00025]
[1756424237180,0.43675881,112520.0,112510.0,0.0001]
[1756424237376,0.43675881,112520.0,112510.0,0.00025]
[1756424237980,0.43675881,112520.0,112510.0,0.00015]
[1756424238176,0.04003,112510.0,112500.0,0.46509361]
[1756424238984,0.0453498,112520.0,112500.0,0.55397611]
[1756424239284,0.0577998,112520.0,112510.0,0.46508711]
[1756424240185,0.0597998,112520.0,112510.0,0.46508711]
[1756424242382,0.0607998,112520.0,112510.0,0.46508711]
[1756424242582,0.0362198,112520.0,112510.0,0.46508711]
[1756424242988,0.0607998,112520.0,112510.0,0.46508711]
[1756424244286,0.0362198,112520.0,112510.0,0.46508711]
[1756424244682,0.0607998,112520.0,112510.0,0.00025]
[1756424245687,0.04003,112510.0,112500.0,0.47398414]
[1756424246890,0.04203,112510.0,112500.0,0.47398414]
[1756424248594,0.01745,112510.0,112500.0,0.47398414]
[1756424249695,0.04203,112510.0,112500.0,0.09802513]
[1756424249888,0.01745,112510.0,112500.0,0.47398414]
[1756424250088,0.002,112510.0,112500.0,0.47398414]
[1756424250492,0.04127,112510.0,112500.0,0.47398544]
[1756424252595,0.04127,112510.0,112500.0,0.09802643]
[1756424252784,0.04127,112510.0,112500.0,0.46509451]
[1756424254296,0.01745,112510.0,112500.0,0.46509451]
[1756424254799,0.002,112510.0,112500.0,0.09823383]
[1756424255000,0.002,112510.0,112500.0,0.47419284]
[1756424255700,0.002,112510.0,112500.0,1.04419284]
[1756424256000,0.002,112510.0,112500.0,1.064154]
[1756424256592,0.002,112510.0,112500.0,1.884434]
[1756424257191,0.002,112510.0,112500.0,1.564434]
[1756424262908,0.02582,112510.0,112500.0,0.7441542]
[1756424263209,0.2912,112510.0,112500.0,0.4052685]
[1756424263409,0.2912,112510.0,112500.0,0.4941542]
[1756424264611,0.2912,112510.0,112500.0,0.02930949]
[1756424264911,0.2912,112510.0,112500.0,0.4941542]
[1756424267114,0.26738,112510.0,112500.0,0.4941542]
[1756424267412,0.01738,112510.0,112500.0,0.4941542]
[1756424267911,0.0412,112510.0,112500.0,0.4941542]
[1756424272312,0.0412,112510.0,112500.0,0.11819519]
[1756424272512,0.0412,112510.0,112500.0,0.4941542]
[1756424274116,0.01738,112510.0,112500.0,0.4941542]
[1756424277220,0.002,112510.0,112500.0,0.4941542]
[1756424277722,0.002,112510.0,112500.0,0.11819519]
[1756424277921,0.002,112510.0,112500.0,0.4941542]
[1756424278623,0.002,112510.0,112500.0,0.8141542]
[1756424279725,0.002,112510.0,112500.0,0.4941542]
[1756424280125,0.002,112510.0,112500.0,0.11819519]
[1756424280325,0.002,112510.0,112500.0,0.4941542]
[1756424284029,0.01854,112510.0,112500.0,0.4941542]
[1756424284626,0.66939901,112510.0,112500.0,0.02930949]
[1756424284823,0.29344,112510.0,112500.0,0.11819499]
[1756424285922,0.29344,112510.0,112500.0,0.494154]
[1756424288929,0.29344,112510.0,112500.0,0.02021116]
[1756424289622,0.29344,112510.0,112500.0,0.10909606]
[1756424290233,0.29344,112510.0,112500.0,0.10899606]
[1756424292635,0.29344,112510.0,112500.0,0.10909606]
[1756424294933,0.29344,112510.0,112500.0,0.48505507]
[1756424299737,0.29344,112510.0,112500.0,0.64484271]
[1756424300440,0.29344,112510.0,112500.0,0.72484271]
[1756424301339,0.29344,112510.0,112500.0,0.56505507]
[1756424303239,0.06125215,112510.0,112500.0,0.01996116]
[1756424303443,0.04144,112500.0,112490.0,0.16878881]
[1756424303643,0.41739901,112500.0,112480.0,0.31642878]
[1756424303842,0.04144,112490.0,112480.0,0.31657878]
[1756424304142,0.04144,112490.0,112480.0,0.48527178]
[1756424307040,0.04144,112490.0,112480.0,0.26910231]
[1756424307446,0.04144,112490.0,112480.0,0.27795768]
[1756424307648,0.04144,112490.0,112480.0,0.11817004]
[1756424310450,0.04144,112490.0,112480.0,0.49412905]
[1756424312953,0.8578,112500.0,112490.0,0.0891418]
[1756424313152,0.01556,112500.0,112490.0,0.46510081]
[1756424313358,0.49501215,112510.0,112500.0,0.0891339]
[1756424313545,0.49501215,112510.0,112500.0,0.46509291]
[1756424316355,0.49701215,112510.0,112500.0,0.46509291]
[1756424318255,0.45761215,112510.0,112500.0,1.02509291]
[1756424320360,0.01981215,112510.0,112500.0,1.02509291]
[1756424320557,0.002,112510.0,112500.0,1.02509291]
[1756424323655,0.002,112510.0,112500.0,1.03509291]
[1756424327457,0.0394,112530.0,112520.0,0.088868]
[1756424327664,0.0394,112530.0,112520.0,0.46507701]
[1756424329564,0.0414,112530.0,112520.0,0.46507701]
[1756424331564,0.66735901,112530.0,112520.0,0.00015]
[1756424331965,0.64351901,112530.0,112510.0,0.46492901]
[1756424332266,0.0394,112520.0,112510.0,0.08912]
[1756424334963,0.0394,112520.0,112500.0,0.9059639]
[1756424334964,0.66535901,112520.0,112500.0,0.0889793]
[1756424335168,0.0394,112510.0,112500.0,0.0891293]
[1756424335769,0.0394,112510.0,112500.0,0.46508831]
[1756424336862,0.0394,112510.0,112500.0,0.0891293]
[1756424344774,0.0394,112510.0,112500.0,0.46508831]
[1756424349377,0.03415537,112520.0,112510.0,0.0891252]
[1756424349684,0.01787537,112520.0,112510.0,0.46508421]
[1756424350783,0.01887537,112520.0,112510.0,0.46508421]
[1756424350982,0.03515537,112520.0,112510.0,0.46508421]
[1756424351183,0.01887537,112520.0,112510.0,0.46508421]
[1756424351790,0.01887537,112520.0,112510.0,1.28136421]
[1756424352887,0.01887537,112520.0,112510.0,1.85136421]
[1756424353094,0.001,112520.0,112510.0,1.85136421]
[1756424353589,0.0009,112520.0,112510.0,1.85136421]
[1756424353782,0.0009,112520.0,112510.0,2.01115185]
[1756424354591,0.0009,112520.0,112510.0,1.85136421]
[1756424358495,0.0009,112520.0,112510.0,2.01082403]
[1756424358794,0.0009,112520.0,112510.0,1.63486502]
[1756424358999,0.0009,112520.0,112510.0,2.01082403]
[1756424363201,0.0009,112520.0,112510.0,1.85136421]
[1756424368302,0.02512,112520.0,112510.0,1.85148421]
[1756424368498,0.0009,112520.0,112510.0,1.85148421]
[1756424369103,0.0009,112520.0,112510.0,1.53148421]
[1756424369300,0.0009,112520.0,112510.0,1.85148421]
[1756424370505,0.0009,112520.0,112510.0,1.55148421]
[1756424370706,0.0009,112520.0,112510.0,1.84148421]
[1756424376111,0.0009,112520.0,112510.0,2.00094403]
[1756424377211,0.0009,112520.0,112510.0,1.84148421]
[1756424378608,0.0009,112520.0,112510.0,2.00094403]
[1756424381008,0.02455,112520.0,112510.0,1.18454403]
[1756424381210,0.0009,112520.0,112510.0,1.99938403]
[1756424383013,0.0009,112520.0,112510.0,1.68938403]
[1756424383204,0.0009,112520.0,112510.0,2.00938403]
[1756424384417,0.02455,112520.0,112510.0,1.68938403]
[1756424384716,0.0009,112520.0,112510.0,2.00938403]
[1756424385318,0.0009,112520.0,112510.0,2.05572072]
[1756424388515,0.02455,112520.0,112510.0,2.05572072]
[1756424389012,0.02455,112520.0,112510.0,1.24088072]
[1756424389220,0.02455,112520.0,112510.0,2.05564072]
[1756424389516,0.0009,112520.0,112510.0,2.05564072]
[1756424389706,0.0009,112520.0,112510.0,2.22793642]
[1756424390822,0.0009,112520.0,112510.0,1.80564072]
[1756424391121,0.0009,112520.0,112510.0,2.22793642]
[1756424391312,0.0009,112520.0,112510.0,1.80564072]
[1756424393427,0.04089,112520.0,112510.0,1.48540072]
[1756424393718,0.04089,112520.0,112510.0,1.79540072]
[1756424393920,0.01724,112520.0,112510.0,1.79540072]
[1756424394217,0.04089,112520.0,112510.0,1.79540072]
[1756424394717,0.01724,112520.0,112510.0,1.79540072]
[1756424396313,0.04089,112520.0,112510.0,1.79540072]
[1756424396514,0.04089,112520.0,112510.0,1.48540072]
[1756424397120,0.01724,112520.0,112510.0,0.5114209]
[1756424397321,0.01724,112520.0,112510.0,1.3259409]
[1756424397522,0.04089,112520.0,112510.0,1.3259409]
[1756424397723,0.04089,112520.0,112510.0,0.5114209]
[1756424397925,0.04089,112520.0,112510.0,1.3258209]
[1756424399024,0.04089,112520.0,112510.0,1.3257409]
[1756424399818,0.04089,112520.0,112510.0,1.53300691]
[1756424400032,0.04089,112520.0,112510.0,1.53284691]
[1756424401031,0.01724,112520.0,112510.0,0.71868691]
[1756424401328,0.01724,112520.0,112510.0,1.53272691]
[1756424401518,0.01724,112520.0,112510.0,0.71868691]
[1756424401721,0.01724,112520.0,112510.0,1.53256691]
[1756424402020,0.01724,112520.0,112510.0,0.71868691]
[1756424402218,0.01724,112520.0,112510.0,1.3253009]
[1756424402624,0.01724,112520.0,112510.0,0.5114209]
[1756424402824,0.01724,112520.0,112510.0,1.3252209]
[1756424403329,0.04132,112520.0,112510.0,1.3251409]
[1756424403524,0.04132,112520.0,112510.0,1.80493327]
[1756424403830,0.01724,112520.0,112510.0,0.99121327]
[1756424404127,0.04132,112520.0,112510.0,1.80493327]
[1756424404329,0.01724,112520.0,112510.0,1.80513327]
[1756424405330,0.01724,112520.0,112510.0,0.99121327]
[1756424405531,0.01724,112520.0,112510.0,1.80533327]
[1756424405727,0.7136157,112520.0,112510.0,0.16004237]
[1756424405922,0.7136157,112520.0,112510.0,0.15979237]